Cogmind - Beta 14 @@@ ROGUE MODE // 2024.09.18 @ 22:17:28 Player: Omega Result: Self-destructed Performance ------------- Evolutions (1) 500 Regions Visited (2) 400 Robots Destroyed (14) 70 Value Destroyed (388) 388 Prototype IDs (0) 0 Alien Tech Used (0) 0 Bonus (0) 0 TOTAL SCORE: 1358 Bonus ------- None Cogmind --------- Core Integrity 192/400 Matter 265/300 Energy 250/250 System Corruption 0% Temperature Cool (6) Movement Walking (330) Ox3 Location -9/Materials Parts ------- > --- POWER (1) -------- Ion Engine > --- PROPULSION (3) --- Aluminum Leg > --- UTILITY (3) ------ Large Storage Unit Hardened Light Armor Plating > --- WEAPON (2) ------- Medium Laser > --- INVENTORY (15) --- Light Ion Engine Improved Aluminum Leg Heat Sink Heat Sink Disposable Heat Sink Medium Laser Peak State ------------ > --- POWER ------------ Ion Engine > --- PROPULSION ------- Improved Aluminum Leg Improved Aluminum Leg Improved Aluminum Leg > --- UTILITY ---------- Large Storage Unit Hardened Light Armor Plating Hardened Light Armor Plating > --- WEAPON ----------- Medium Laser Autogun > --- INVENTORY -------- Light Ion Engine Aluminum Leg Improved Aluminum Leg Heat Sink Heat Sink Disposable Heat Sink Hardened Light Armor Plating Medium Laser [Rating: 16] Favorites ----------- Power Ion Engine Engine Ion Engine Propulsion Improved Aluminum Leg Leg Improved Aluminum Leg Utility Hardened Light Armor Plating Device Sensor Array Storage Small Storage Unit Protection Hardened Light Armor Plating Weapon Medium Laser Energy Gun Medium Laser Ballistic Gun Light Assault Rifle Build | -11 -10 -9 ------- Run | Yrd Mat Mat Slots Evolved 2 | . . 2 Power . | . . . Propulsion 1 | . . 1 Utility 1 | . . 1 Weapon . | . . . Parts Attached 19 | 6 5 8 Power 2 | 1 . 1 Engine 2 | 1 . 1 Core . | . . . Reactor . | . . . Propulsion 6 | 2 2 2 Treads . | . . . Leg 6 | 2 2 2 Wheel . | . . . Hover . | . . . Flight . | . . . Utility 7 | 1 3 3 Device 1 | . 1 . Storage 2 | 1 . 1 Processor . | . . . Hackware . | . . . Protection 4 | . 2 2 Artifact . | . . . Weapon 4 | 2 . 2 Energy Gun 2 | 1 . 1 Energy Cannon . | . . . Ballistic Gun 2 | 1 . 1 Ballistic Cannon . | . . . Launcher . | . . . Special Weapon . | . . . Impact Weapon . | . . . Slashing Weapon . | . . . Piercing Weapon . | . . . Special Melee Weapon . | . . . Unidentified Prototypes . | . . . Parts Lost 3 | . . 3 Power . | . . . Propulsion 1 | . . 1 Utility 1 | . . 1 Weapon 1 | . . 1 Highest Loss Streak 2 | . . 2 To Critical Strikes . | . . . Average Slot Usage (%) 95 | . 97 92 Engine 12 | . 14 11 Leg 29 | . 28 31 Device 2 | . 4 . Storage 12 | . 14 11 Protection 12 | . 6 18 Energy Gun 12 | . 14 11 Ballistic Gun 11 | . 14 8 Peak Build Rating 16 | 6 11 16 Average Rating 10 | 5 8 14 On Entrance 5 | . 6 11 Naked Turns . | . . . Heaviest Build 40 | 13 18 40 Greatest Support 39 | 20 26 39 Greatest Overweight (x) 8 | 2 . 8 Average Overweight (x) . | . . . Largest Inventory Capacity 15 | 8 8 15 Average Capacity 10 | 7 8 14 Most Carried 8 | 6 8 8 Average Carried 6 | 3 7 7 Final Capacity 15 | 8 8 15 Final Carried 8 | 6 8 6 Class Distribution -------------------- 100% | Mutant Dominant Class ---------------- Mutant | -10/Materials Mutant | -9/Materials Resources | -11 -10 -9 ----------- Run | Yrd Mat Mat Matter Collected 422 | 190 132 100 Remotely . | . . . Salvage Created 429 | . 186 243 Parts 26 | . 10 16 Haulers Intercepted . | . . . Recyclers Shooed . | . . . Parts Field Recycled . | . . . Retrieved Matter . | . . . Parts Self-Destructed . | . . . Prevented . | . . . Kills | -11 -10 -9 ------- Run | Yrd Mat Mat Combat Hostiles Destroyed 13 | . 4 9 Guns 13 | . 4 9 Classes Destroyed 3 | . 2 1 Watcher 1 | . 1 . Swarmer 4 | . . 4 Grunt 9 | . 4 5 Best Kill Streak 4 | . 3 4 Combat Bots Only 4 | . 3 4 Max Kills in Single Turn 1 | . 1 1 Gunslinging . | . . . Exploded . | . . . Melee . | . . . Uniques/NPCs Destroyed . | . . . Combat | -11 -10 -9 -------- Run | Yrd Mat Mat Hostile Shots Fired 124 | . 20 104 Missed 27 | . 4 23 Damage Taken 1172 | . 177 995 Core 238 | . 30 208 Absorbed by Shields . | . . . Core Remaining (%) 94 | 100 88 . Volleys Fired 43 | . 12 31 Largest 2 | . 2 2 Hottest 73 | . 70 73 Shots Fired 83 | . 24 59 Gun 83 | . 24 59 Cannon . | . . . Launcher . | . . . Special . | . . . Kinetic 40 | . 12 28 Thermal 43 | . 12 31 Explosive . | . . . Electromagnetic . | . . . Robot Hit Streak 8 | . 4 8 Robot Miss Streak 4 | . 2 4 Penetration Max . | . . . Secondary Targets 2 | . . 2 Max Gunslinging Chain 1 | . . 1 Shots Hit Robots 57 | . 14 43 Core Hits 27 | . 10 17 Critical Kills . | . . . Critical Parts Destroyed . | . . . Critical Strikes 7 | . 2 5 Burn 7 | . 2 5 Melee Attacks . | . . . Impact . | . . . Slashing . | . . . Piercing . | . . . Sneak Attacks . | . . . Combat Hostiles . | . . . Follow-up Attacks . | . . . Damage Inflicted 684 | . 146 538 Guns 684 | . 146 538 Cannons . | . . . Explosions . | . . . Melee . | . . . Ramming . | . . . Kinetic 274 | . 48 226 Thermal 410 | . 98 312 Explosive . | . . . Electromagnetic . | . . . Impact . | . . . Slashing . | . . . Piercing . | . . . Highest Corruption . | . . . Average Corruption . | . . . Corruption Purged . | . . . Corruption Blocked . | . . . Overload Shots . | . . . Overflow Damage . | . . . Projectiles . | . . . Explosions . | . . . Melee . | . . . Knockbacks . | . . . Impact . | . . . Kinetic . | . . . Secondary . | . . . Self-Inflicted Damage . | . . . Shots . | . . . Rammed . | . . . Targets Rammed . | . . . Kicked . | . . . Crushed . | . . . Highest Temperature 548 | . 97 548 Average Temperature 176 | . 35 214 Received Heat Transfer 669 | . 99 570 Effects 13 | . . 13 Shutdowns 4 | . . 4 Energy Bleed 2 | . . 2 Short Circuit 3 | . . 3 Damage (major) 4 | . . 4 Siege Activations . | . . . Robots Corrupted . | . . . Combat Hostiles . | . . . Parts Fried . | . . . Impact Corruptions . | . . . Robots Melted . | . . . Combat Hostiles . | . . . Parts Melted 1 | . . 1 Heat Transferred 1739 | . 444 1295 Parts Sabotaged . | . . . Parts Stolen . | . . . Parts Stripped . | . . . Power Chain Reactions . | . . . Alert | -11 -10 -9 ------- Run | Yrd Mat Mat Peak Influence 302 | . 137 302 Initial 57 | . . 57 Average 105 | . 69 182 Maximum Alert Level 1 | . . 1 Low Security (%) 76 | 100 100 43 Level 1 23 | . . 56 Level 2 . | . . . Level 3 . | . . . Level 4 . | . . . Level 5 . | . . . High Security . | . . . Max Security . | . . . Squads Dispatched 3 | . 1 2 Investigation . | . . . Extermination . | . . . Reinforcement 3 | . 1 2 Assault . | . . . Garrison . | . . . Intercept . | . . . Searches Triggered . | . . . Construction Impeded . | . . . Haulers Reinforced . | . . . Active Scanning Responses . | . . . Cargo Convoy Interrupts . | . . . Stealth | -11 -10 -9 --------- Run | Yrd Mat Mat Distress Signals 2 | . . 2 Communications Jammed . | . . . Distress Signals . | . . . Times Spotted 28 | . 8 20 Peak Tracking Total 8 | . 2 8 Tactical Retreats . | . . . Traps | -11 -10 -9 ------- Run | Yrd Mat Mat Traps Triggered 2 | . 1 1 Indirectly . | . . . Trap Hack Attempts . | . . . Triggered . | . . . Disarmed . | . . . Reprogrammed . | . . . Reused . | . . . Traps Extracted . | . . . Installed . | . . . Triggered . | . . . Machines | -11 -10 -9 ---------- Run | Yrd Mat Mat Machines Disabled . | . . . Max in Single Turn . | . . . Machines Repaired . | . . . Machines Dismantled . | . . . Machines Sabotaged . | . . . Overloaded Fab Kills . | . . . Hacking | -11 -10 -9 --------- Run | Yrd Mat Mat Machines Accessed . | . . . Terminals . | . . . Fabricators . | . . . Repair Stations . | . . . Recycling Units . | . . . Scanalyzers . | . . . Garrison Access . | . . . Total Hacks . | . . . Successful . | . . . Failed . | . . . Catastrophic . | . . . Database Lockouts . | . . . Manual . | . . . Terminals . | . . . Fabricators . | . . . Repair Stations . | . . . Recycling Units . | . . . Scanalyzers . | . . . Garrison Access . | . . . Terminal Hacks . | . . . Fabricator Hacks . | . . . Repair Station Hacks . | . . . Recycling Unit Hacks . | . . . Scanalyzer . | . . . Garrison Access Hacks . | . . . Unauthorized Hacks . | . . . Terminals . | . . . Fabricators . | . . . Repair Stations . | . . . Recycling Units . | . . . Scanalyzers . | . . . Garrison Access . | . . . Data Cores Recovered . | . . . Used . | . . . Hacking Detections . | . . . Full Trace Events . | . . . Feedback Events . | . . . Feedback Blocked . | . . . Robot Schematics Acquired . | . . . Robots Built . | . . . Authchips . | . . . Time . | . . . Total Robot Build Rating . | . . . Part Schematics Acquired . | . . . Parts Built . | . . . Authchips . | . . . Time . | . . . Total Part Build Rating . | . . . Parts Repaired . | . . . Time . | . . . Parts Recycled . | . . . Recycled Matter . | . . . Retrieved Matter . | . . . Retrieved Components . | . . . Parts Scanalyzed . | . . . Part Schematics Acquired . | . . . Parts Damaged . | . . . Bothacking | -11 -10 -9 ------------ Run | Yrd Mat Mat Used RIF Installer . | . . . Robots Hacked . | . . . Non-combat . | . . . Combat . | . . . Robot Hacks Applied . | . . . Relay Couplers Released . | . . . Fabnet Peak Effective % . | . . . Robots Rewired . | . . . Allies Hacked . | . . . Hacks Repelled . | . . . Allies | -11 -10 -9 -------- Run | Yrd Mat Mat Total Allies . | . . . Largest Group . | . . . Highest-Rated Group . | . . . Highest-Rated Ally . | . . . Total Orders . | . . . Ally Attacks . | . . . Total Damage . | . . . Kills . | . . . Allies Corrupted . | . . . Allies Melted . | . . . Intel | -11 -10 -9 ------- Run | Yrd Mat Mat Robot Analysis Total . | . . . Derelict Logs Recovered . | . . . Drone Launches . | . . . Drone Recoveries . | . . . Exploration | -11 -10 -9 ------------- Run | Yrd Mat Mat Turns Passed 770 | 113 343 314 Spaces Moved 439 | 85 232 122 Core 8 | 7 . 1 Treads . | . . . Legs 431 | 78 232 121 Wheels . | . . . Hover . | . . . Flight . | . . . Fastest Speed 50 | 50 120 120 Average Speed 132 | 116 120 166 Slowest Speed 450 | 150 120 450 Overloaded Moves . | . . . Propulsion Burnouts . | . . . Robots Hopped . | . . . Cave-ins Triggered . | . . . Exploration Rate (%) 18 | 5 32 17 Regions Visited 2 Branch Regions . Pre-discovered Areas . | . . . Known Exits Taken . | . . . Unknown Exits Taken 2 | 1 1 . Scrap Searched . | . . . Spaces Dug . | . . . Terrain Destroyed . | . . . Melee . | . . . Projectile . | . . . AOE . | . . . Terrain Rammed . | . . . Walls Destroyed . | . . . Machines Disabled . | . . . Actions | -11 -10 -9 --------- Run | Yrd Mat Mat Total 552 | 96 278 178 Wait 22 | . 13 9 Move 437 | 84 231 122 Hop . | . . . Pick Up 19 | 6 8 5 Fast Attach 11 | 6 3 2 Attach 4 | . . 4 Detach . | . . . Swap 4 | . 2 2 Drop 12 | . 9 3 Fire 43 | . 12 31 Melee . | . . . Ram . | . . . Kick . | . . . Crush . | . . . Escape Stasis . | . . . Rewire . | . . . Trap . | . . . Miscellaneous . | . . . Route ------- -11/Scrapyard -10/Materials -9/Materials History --------- Turn | Location | Event 13 | -11/Scrapyard | Discovered new exit (range 16) 114 | -11/Scrapyard | Entered Materials 212 | -10/Materials | Discovered new exit (range 11) 310 | -10/Materials | Build established: Mutant 457 | -10/Materials | Entered another Materials area 457 | -9/Materials | Evolved 2 slots: Propulsion x1, Utility x1 756 | -9/Materials | Core integrity fell below 50% 771 | -9/Materials | Self-destructed Last Messages --------------- K-01 Serf collects debris. G-47 Trooper heat short circuits Aluminum Leg. G-47 Trooper overheating. K-01 Serf collects debris. Triggered Blade Trap. Massive razor-sharp blades shoot up from within the floor. Hrd. Light Armor Plating severed. Imp. Aluminum Leg severed. Broken Imp. Aluminum Leg severed. R-06 Scavenger collects Hrd. Light Armor Plating. U-05 Engineer lays Concrete. W-16 Scout sends out distress signal. U-05 Engineer destroyed. Broken Imp. Aluminum Leg destroyed. R-06 Scavenger collects Imp. Aluminum Leg. R-06 Scavenger collects Lgt. Ion Engine. R-06 Scavenger collects Broken Imp. Aluminum Leg. Map ----- +----------------------------------------------------+ | ??????????????????????????????????????????????? | | ??????????????????????????????????????????????? | | ??????????????????????????????????????????????? | | ??????????????????????????????????????????????? | | ??????????????????????????????????????????????? | | ??????????????????????????????????????????????? | | ??????????????????????????????????????????????# | | ??????????????????????????????????????????????# | | ??????????????????????????????????????????????# | | ?????????????????????????????????????#????????# | | ???????????????????????????????????## ##??????# | | ???????????????????????????????????# ##?????# | | ???????????????????????????????????# ##????# | | ???????????????????????????????????# #????# | | ???????????????????????????????????# #????# | | ???????????????????????????????????# #????# | | ???????????????????????????????????# #?????# | | ????????????????#????????????####### ??????# | | ??????????????### ########## ## ######### % | | ????????????? ! | | ????????????? =%= % | | ????????????? |!""""" | | ?????????????????##########g## """"" ########+# | | ?????????????????????# # """"" #???# | | ?????????????????????#"" # ##??# """" | | ?????????????????????#"" @ # ""??# ""T" | | ?????????????????????#"T # T"??# | | ?????????????????????#"" # ""??# | | ?????????????????????#"" """ # "" ##??# | | ?????????????????????# """ # ! Y" ##### | | ?????????????????????# """ # "" + | | ?????????????????????# """ # ##### | | ?????????????????????# Y""" # #???###### | | ?????????????????????# ??? ######## #????????? | | ?????????????????????### ???##??????# +????????? | | ???????????????????????##???????????# #????????? | | ????????????????????????????????????# #????????? | | ????????????????????????????????????### #????????? | | ??????????????????????????????????????#%#????????? | | ??????????????????????????????#########+#????????? | | ??????????????????????????????# """""* [#????????? | | ??????????????????????????????# """""[[=#??????### | | ??????????????????????????????# """"" #??????# | | ??????????????????????????????# #??????# | | ??????????????????????????????# #??????# | | ??????????????????????????????# #??????# | | ??????????????????????????????# #??????# | | ??????????????????????????????# #??????# | | ?????????????????????##+###########+############## | | ???????????????????? %[ | +----------------------------------------------------+ Best States ------------- Heat Dissipation 28 Energy Generation 10 Energy Capacity 250 Matter Stores 300 Matter Capacity 300 Sight Range 16 Robot Scan Range 14 Terrain Scan Density 10 Armor Coverage 300 Evasion (%) 55 Item Schematics ----------------- None Robot Schematics ------------------ None Fabricated ------------ Nothing Alien Tech Used ----------------- None Achievements -------------- None Challenges ------------ None Game ------ Seed BiocellMetafieldHammer Manual? 0 Play Time 00:12:29 Cumulative 3.0 hours Start 2024.09.18 @ 21:59:30 End 2024.09.18 @ 22:17:28 Sessions 1 Manual Loads 0 Difficulty Rogue Special Mode None Game No. 4 Rogue 4 Adventurer 0 Explorer 0 Win Type - Total 0 Types 0/0/0/0/0/0/0/0/0 Lore% 2 Gallery% 7 Achievement% 9 Wizard Run 0 Options --------- Layout 1 ASCII 0 Keyboard 0 Movement Mouse Keybinds 0 Fullscreen 1 Font 24/Smallcaps Map View 50x35 Zoom Use 0% Tactical HUD 0 Map Filters NONE Filters NONE Steam 1 RUN: 5643ddfb-bee1-45fd-84d7-6ace7c93bf7d